fUST/lending_fUST_20250531
["ID","MTS","AMOUNT","RATE_DAILY","PERIOD"]
[363286370,1748658647253,-250.0,0.00020397,2]
[363286371,1748658647263,-4000.0,0.00020407,4]
[363286372,1748658647273,-1000.0,0.00020408,2]
[363286373,1748658647282,-501.67135089,0.00020412,2]
[363286374,1748658647291,-1000.0,0.00020412,2]
[363286375,1748658647301,-1000.0,0.00020412,2]
[363286376,1748658647311,-1003.78201523,0.00020412,2]
[363286377,1748658647319,-1000.0,0.00020412,2]
[363286378,1748658647329,-151.0,0.0002043,2]
[363286379,1748658647339,-1004.78597977,0.00020434,2]
[363286380,1748658647348,-1000.0,0.00020434,2]
[363286381,1748658647357,-570.39206092,0.00020434,2]
[363286382,1748658647366,-500.0,0.00020435,2]
[363286384,1748658647375,-2000.0,0.00020452,2]
[363286386,1748658647385,-248.29563372,0.00020457,2]
[363286387,1748658647394,-2755.93095573,0.00020486,3]
[363286388,1748658647403,-500.0,0.00020495,2]
[363286389,1748658647413,-1000.0,0.00020495,2]
[363286390,1748658647422,-402.71138246,0.00020495,2]
[363286391,1748658647431,-1000.0,0.00020495,2]
[363286392,1748658647441,-198.23089118,0.00020495,2]
[363286393,1748658647451,-1000.0,0.00020495,2]
[363286394,1748658647460,-1006.316053,0.00020495,2]
[363286395,1748658647469,-1000.0,0.00020495,2]
[363286396,1748658647479,-1000.0,0.00020495,2]
[363286397,1748658647488,-1000.0,0.00020495,2]
[363286398,1748658647498,-1200.0,0.00020495,2]
[363286399,1748658647508,-554.54632245,0.00020495,2]
[363286400,1748658647518,-1000.0,0.00020495,2]
[363286401,1748658647526,-487.1,0.00020547,2]
[363286402,1748658647535,-765.86,0.00020547,2]
[363286403,1748658647545,-1149.84,0.00020547,2]
[363286404,1748658647554,-536.88,0.00020547,2]
[363286405,1748658647564,-875.79,0.00020547,2]
[363286406,1748658647574,-865.84843381,0.00020547,2]
[363286407,1748658647692,-493.36156619,0.00020547,2]
[363286408,1748658647701,-676.01943019,0.00020547,2]
[363286409,1748658647713,-752.55185998,0.00020547,2]
[363286410,1748658647724,-51.02870983,0.00020547,2]
[363286411,1748658647734,-430.0,0.00020547,2]
[363286412,1748658647746,-462.2,0.00020547,2]
[363286413,1748658647755,-636.16,0.00020547,2]
[363286414,1748658647764,-160.76988273,0.00020547,2]
[363286415,1748658647775,-982.3,0.00020547,2]
[363286416,1748658647785,-430.0,0.00020547,2]
[363286417,1748658647795,-482.02,0.00020547,2]
[363286418,1748658647804,-484.13,0.00020547,2]
[363286419,1748658647813,-154.00048964,0.00020547,2]
[363286420,1748658647825,-397.89386563,0.00020547,2]
[363286421,1748658647836,-152.73564473,0.00020547,2]
[363286422,1748658647846,-520.46,0.00020547,2]
[363286423,1748658647855,-557.15,0.00020547,2]
[363286424,1748658647864,-5000.0,0.00020548,2]
[363286425,1748658647873,-160.0,0.00020582,3]
[363286426,1748658647883,-12890.51,0.000206,2]
[363286427,1748658647892,-6332.48,0.000206,2]
[363286428,1748658647902,-1801.96,0.000206,2]
[363286429,1748658647911,-2220.95655875,0.000206,2]
[363286430,1748658647922,-8634.49031749,0.000206,2]
[363286431,1748658647933,-2561.80641442,0.000206,2]
[363286432,1748658647942,-57356.54670934,0.000206,2]
[363286433,1748658647951,-500.0,0.00020716,2]
[363286434,1748658647961,-500.0,0.00020716,2]
[363286435,1748658647970,-2755.93095573,0.00020762,3]
[363286436,1748658647979,-487.1,0.00020821,2]
[363286437,1748658647988,-765.86,0.00020821,2]
[363286438,1748658647997,-1149.84,0.00020821,2]
[363286439,1748658648008,-536.88,0.00020821,2]
[363286440,1748658648017,-875.79,0.00020821,2]
[363286441,1748658648027,-1359.21,0.00020821,2]
[363286442,1748658648036,-1479.6,0.00020821,2]
[363286443,1748658648045,-430.0,0.00020821,2]
[363286444,1748658648055,-462.2,0.00020821,2]
[363286445,1748658648064,-636.16,0.00020821,2]
[363286446,1748658648073,-982.3,0.00020821,2]
[363286447,1748658648083,-430.0,0.00020821,2]
[363286448,1748658648093,-482.02,0.00020821,2]
[363286449,1748658648102,-484.13,0.00020821,2]
[363286450,1748658648112,-704.63,0.00020821,2]
[363286451,1748658648122,-520.46,0.00020821,2]
[363286452,1748658648131,-557.15,0.00020821,2]
[363286453,1748658648140,-206.0,0.0002086,2]
[363286454,1748658648152,-1325.8631862,0.00020917,2]
[363286455,1748658648161,-160.0,0.0002093,4]
[363286456,1748658648170,-1500.0,0.00020956,2]
[363286457,1748658648180,-1500.0,0.0002096,2]
[363286458,1748658648190,-3516.24,0.00020993,2]
[363286459,1748658648200,-31770.5870852,0.00021,2]
[363286460,1748658648210,-10000.0,0.00021,5]
[363286461,1748658648219,-267.91986674,0.00021,2]
[363286462,1748658648229,-1502.92722416,0.00021,10]
[363286463,1748658648238,-200.40042288,0.00021,2]
[363286464,1748658648247,-2755.93095573,0.00021038,4]
[363286465,1748658648257,-1500.0,0.00021043,2]
[363286466,1748658648267,-836.35322719,0.00021043,2]
[363286467,1748658648278,-1500.0,0.00021043,2]
[363286468,1748658648288,-500.0,0.00021043,2]
[363286469,1748658648298,-1800.0,0.00021043,2]
[363286470,1748658648308,-1500.0,0.00021043,2]
[363286471,1748658648317,-223.0315306,0.00021094,2]
[363286472,1748658648326,-487.1,0.00021095,2]
[363286473,1748658648336,-765.86,0.00021095,2]
[363286474,1748658648345,-1149.84,0.00021095,2]
[363286475,1748658648355,-536.88,0.00021095,2]
[363286476,1748658648364,-875.79,0.00021095,2]
[363286477,1748658648374,-1359.21,0.00021095,2]
[363286478,1748658648385,-1479.6,0.00021095,2]
[363286479,1748658648395,-430.0,0.00021095,2]
[363286480,1748658648405,-462.2,0.00021095,2]
[363286481,1748658648414,-636.16,0.00021095,2]
[363286482,1748658648423,-982.3,0.00021095,2]
[363286483,1748658648432,-430.0,0.00021095,2]
[363286484,1748658648442,-482.02,0.00021095,2]
[363286485,1748658648452,-484.13,0.00021095,2]
[363286486,1748658648462,-704.63,0.00021095,2]
[363286487,1748658648472,-520.46,0.00021095,2]
[363286488,1748658648482,-557.15,0.00021095,2]
[363286489,1748658648490,-5000.0,0.00021096,2]
[363286490,1748658648498,-206.0,0.0002114,2]
[363286491,1748658648507,-500.0,0.00021217,2]
[363286492,1748658648516,-1149.02489389,0.00021264,2]
[363286493,1748658648524,-1000.0,0.00021264,2]
[363286494,1748658648532,-160.0,0.00021279,5]
[363286495,1748658648541,-153.0,0.00021288,2]
[363286496,1748658648551,-2755.93095573,0.00021314,5]
[363286497,1748658648560,-487.1,0.00021369,2]
[363286498,1748658648569,-765.86,0.00021369,2]
[363286499,1748658648579,-1149.84,0.00021369,2]
[363286500,1748658648588,-536.88,0.00021369,2]
[363286501,1748658648599,-875.79,0.00021369,2]
[363286502,1748658648608,-1359.21,0.00021369,2]
[363286503,1748658648618,-1479.6,0.00021369,2]
[363286504,1748658648628,-523.48445327,0.00021369,2]
[363286505,1748658648637,-462.2,0.00021369,2]
[363286506,1748658648651,-636.16,0.00021369,2]
[363286507,1748658648661,-982.3,0.00021369,2]
[363286508,1748658648671,-517.94928098,0.00021369,2]
[363286509,1748658648681,-482.02,0.00021369,2]
[363286510,1748658648691,-484.13,0.00021369,2]
[363286511,1748658648701,-704.63,0.00021369,2]
[363286512,1748658648711,-520.46,0.00021369,2]
[363286513,1748658648721,-557.15,0.00021369,2]
[363286514,1748658648731,-206.0,0.0002142,2]
[363286515,1748658648743,-206.0,0.0002142,2]
[363286516,1748658648753,-823.0,0.00021452,2]
[363286517,1748658648763,-823.0,0.00021452,2]
[363286518,1748658648773,-12890.51,0.000215,2]
[363286519,1748658648784,-6332.48,0.000215,2]
[363286520,1748658648794,-500.0,0.000215,2]
[363286521,1748658648803,-11982.0,0.000215,2]
[363286522,1748658648812,-2000.0,0.00021504,2]
[363286523,1748658648822,-2000.0,0.00021508,2]
[363286524,1748658648832,-2305.510432,0.0002156,3]
[363286525,1748658648842,-2755.93095573,0.0002159,5]
[363286526,1748658648852,-2000.0,0.00021591,2]
[363286527,1748658648863,-473.90449573,0.00021591,2]
[363286528,1748658648873,-2400.0,0.00021591,2]
[363286529,1748658648883,-2000.0,0.00021591,2]
[363286530,1748658648892,-1830.50946,0.000216,5]
[363286531,1748658648903,-1801.96,0.000216,2]
[363286532,1748658648913,-40961.2249442,0.000216,2]
[363286533,1748658648928,-2012.9219195,0.000216,2]
[363286534,1748658648993,-889.05,0.00019452,2]
[363286535,1748658649004,-889.05,0.00019726,2]
[363286536,1748658649014,-237.09437004,0.0002,2]
[363286537,1748658649026,-651.95562996,0.0002,2]
[363286538,1748658649035,-889.05,0.00020273,2]
[363286539,1748658649044,-889.05,0.00020547,2]
[363286540,1748658649054,-889.05,0.00020821,2]
[363286541,1748658649063,-889.05,0.00021095,2]
[363286542,1748658649073,-889.05,0.00021369,2]
[363286543,1748658649083,-23184.38586164,0.000216,2]
[363286544,1748658649094,-1007.0,0.000216,2]
[363286545,1748658649111,-3608.26727466,0.000216,2]
[363286546,1748658649120,-1000.0,0.0002162,5]
[363286547,1748658649130,-160.0,0.00021628,6]
[363286548,1748658649139,-1000.0,0.0002164,5]
[363286549,1748658649153,-487.1,0.00021643,2]
[363286550,1748658649163,-765.86,0.00021643,2]
[363286551,1748658649173,-1149.84,0.00021643,2]
[363286552,1748658649186,-536.88,0.00021643,2]
[363286553,1748658649196,-875.79,0.00021643,2]
[363286554,1748658649206,-1359.21,0.00021643,2]
[363286555,1748658649215,-1479.6,0.00021643,2]
[363286556,1748658649224,-462.2,0.00021643,2]
[363286557,1748658649234,-636.16,0.00021643,2]
[363286558,1748658649243,-982.3,0.00021643,2]
[363286559,1748658649253,-482.02,0.00021643,2]
[363286560,1748658649263,-484.13,0.00021643,2]
[363286561,1748658649272,-704.63,0.00021643,2]
[363286562,1748658649282,-520.46,0.00021643,2]
[363286563,1748658649291,-557.15,0.00021643,2]
[363286564,1748658649301,-889.05,0.00021643,2]
[363286565,1748658649311,-5000.0,0.00021644,2]
[363286566,1748658649320,-1000.0,0.0002166,5]
[363286567,1748658649329,-1000.0,0.0002168,5]
[363286568,1748658649339,-206.0,0.0002169,2]
[363286569,1748658649348,-2000.0,0.000217,2]
[363286570,1748658649358,-1000.0,0.000217,5]
[363286571,1748658649368,-500.0,0.000217,2]
[363286572,1748658649377,-500.0,0.000217,2]
[363286573,1748658649387,-118033.34813206,0.000217,2]
[363286574,1748658649468,-366.45182833,0.000217,2]
[363286575,1748658649679,-409.30830858,0.00016438,2]
[363286576,1748658649689,-1300.0,0.00017068,2]
[363286577,1748658649699,-3136.08807347,0.000217,2]
[363286578,1748658649711,-37118.63574751,0.000217,2]
[363286579,1748658649758,-16232.2703132,0.000217,2]
[363286580,1748658649770,-257.63357897,0.000217,2]
[363286587,1748659516783,807.0,0.0002,120]
[363286592,1748659725192,178.607493,0.00013699,2]
[363286594,1748659753411,-207.01782531,0.000164,2]
[363286595,1748659753433,-300.0,0.00016437,2]
[363286596,1748659753454,-300.0,0.00016437,2]
[363286597,1748659753474,-300.0,0.00016437,2]
[363286598,1748659753495,-408.20804156,0.00016438,2]
[363286599,1748659753515,-430.0,0.00016438,2]
[363286600,1748659753536,-430.0,0.00016438,2]
[363286601,1748659753558,-185.21695164,0.00016438,2]
[363286602,1748659753579,-430.0,0.00016438,2]
[363286603,1748659753601,-502.8,0.00016438,2]
[363286604,1748659753624,-430.0,0.00016438,2]
[363286605,1748659753645,-430.0,0.00016438,2]
[363286606,1748659753669,-430.0,0.00016438,2]
[363286607,1748659753690,-430.0,0.00016438,2]
[363286608,1748659753711,-596.3,0.00016438,2]
[363286609,1748659753734,-1146.38,0.00016438,2]
[363286610,1748659753756,-436.48722184,0.00016438,2]
[363286611,1748659753783,-560.43,0.00016438,2]
[363286612,1748659753806,-176.24,0.0001649,3]
[363286613,1748659753827,-793.08,0.0001649,3]
[363286614,1748659753850,-286.39,0.0001649,3]
[363286615,1748659753872,-859.18,0.0001649,3]
[363286616,1748659753895,-272.89035919,0.00016499,2]
[363286617,1748659753917,-500.0,0.00016499,2]
[363286618,1748659753938,-172.53601974,0.00016499,2]
[363286619,1748659753960,-500.0,0.00016499,2]
[363286620,1748659753981,-500.0,0.00016499,2]
[363286621,1748659754006,-199.42663488,0.00016499,2]
[363286622,1748659754033,-506.44119132,0.00016499,2]
[363286623,1748659754054,-127210.62372268,0.000165,7]
[363286624,1748659758147,-12330.53738932,0.000165,7]
[363286625,1748659758168,-212.77096907,0.000165,7]
[363286626,1748659758191,-430.0,0.00016711,2]
[363286627,1748659758213,-430.0,0.00016711,2]
[363286628,1748659758235,-430.0,0.00016711,2]
[363286629,1748659758256,-451.4319265,0.00016711,2]
[363286630,1748659758457,-485.73,0.00016711,2]
[363286631,1748659758480,-430.0,0.00016711,2]
[363286632,1748659758502,-768.16,0.00016711,2]
[363286633,1748659758524,-516.04,0.00016711,2]
[363286634,1748659758545,-513.99041136,0.00016711,2]
[363286635,1748659758568,-1201.36,0.00016711,2]
[363286636,1748659758589,-430.0,0.00016711,2]
[363286637,1748659758612,-430.0,0.00016711,2]
[363286638,1748659758634,-773.38,0.00016711,2]
[363286639,1748659758657,-925.86,0.00016711,2]
[363286640,1748659758678,-430.0,0.00016711,2]
[363286641,1748659758699,-430.0,0.00016711,2]
[363286642,1748659758721,-433.31278646,0.00016711,2]
[363286643,1748659758744,-430.0,0.00016711,2]
[363286644,1748659758765,-430.0,0.00016711,2]
[363286645,1748659758788,-592.46,0.00016711,2]
[363286646,1748659758810,-467.58745214,0.00016711,2]
[363286647,1748659758833,-430.0,0.00016711,2]
[363286648,1748659758855,-981.04,0.00016711,2]
[363286649,1748659758878,-430.0,0.00016711,2]
[363286650,1748659758901,-430.0,0.00016711,2]
[363286651,1748659758924,-430.0,0.00016711,2]
[363286652,1748659758946,-430.0,0.00016711,2]
[363286653,1748659758969,-481.0,0.00016711,2]
[363286654,1748659758991,-182.0,0.00016712,2]
[363286655,1748659759013,-430.0,0.00016712,2]
[363286656,1748659759036,-502.8,0.00016712,2]
[363286657,1748659759058,-430.0,0.00016712,2]
[363286658,1748659759082,-430.0,0.00016712,2]
[363286659,1748659759105,-430.0,0.00016712,2]
[363286660,1748659759129,-430.0,0.00016712,2]
[363286661,1748659759154,-596.3,0.00016712,2]
[363286662,1748659759176,-1146.38,0.00016712,2]
[363286663,1748659759200,-560.43,0.00016712,2]
[363286664,1748659759223,-226.57103148,0.00016885,2]
[363286665,1748659759249,-2790.46531026,0.000169,2]
[363286666,1748659759271,-430.0,0.00016985,2]
[363286667,1748659759293,-430.0,0.00016985,2]
[363286668,1748659759316,-430.0,0.00016985,2]
[363286669,1748659759339,-485.73,0.00016985,2]
[363286670,1748659759364,-768.16,0.00016985,2]
[363286671,1748659759387,-516.04,0.00016985,2]
[363286672,1748659759412,-1201.36,0.00016985,2]
[363286673,1748659759435,-430.0,0.00016985,2]
[363286674,1748659759458,-181.56872425,0.00016985,2]
[363286675,1748659759480,-773.38,0.00016985,2]
[363286676,1748659759504,-925.86,0.00016985,2]
[363286677,1748659759527,-430.0,0.00016985,2]
[363286678,1748659759548,-430.0,0.00016985,2]
[363286679,1748659759569,-473.56,0.00016985,2]
[363286680,1748659759590,-430.0,0.00016985,2]
[363286681,1748659759613,-592.46,0.00016985,2]
[363286682,1748659759635,-430.0,0.00016985,2]
[363286683,1748659759656,-981.04,0.00016985,2]
[363286684,1748659759676,-529.12341231,0.00016985,2]
[363286685,1748659759698,-430.0,0.00016985,2]
[363286686,1748659759719,-430.0,0.00016985,2]
[363286687,1748659759740,-430.0,0.00016985,2]
[363286688,1748659759764,-481.0,0.00016985,2]
[363286689,1748659759785,-430.0,0.00016986,2]
[363286690,1748659759807,-502.8,0.00016986,2]
[363286691,1748659759829,-430.0,0.00016986,2]
[363286692,1748659759849,-430.0,0.00016986,2]
[363286693,1748659759871,-430.0,0.00016986,2]
[363286694,1748659759892,-596.3,0.00016986,2]
[363286695,1748659759915,-1146.38,0.00016986,2]
[363286696,1748659759937,-560.43,0.00016986,2]
[363286697,1748659759959,-842.5625,0.00017,7]
[363286698,1748659759980,-7595.24600785,0.00017,7]
[363286699,1748659760242,-430.0,0.00016711,2]
[363286700,1748659760264,-5069.73444203,0.00017,7]
[363286701,1748659760290,-2790.46531026,0.00017176,2]
[363286702,1748659760312,-470.71755874,0.00017259,2]
[363286703,1748659760335,-485.73,0.00017259,2]
[363286704,1748659760360,-768.16,0.00017259,2]
[363286705,1748659760382,-516.04,0.00017259,2]
[363286706,1748659760404,-1201.36,0.00017259,2]
[363286707,1748659760425,-430.0,0.00017259,2]
[363286708,1748659760446,-773.38,0.00017259,2]
[363286709,1748659760468,-925.86,0.00017259,2]
[363286710,1748659760491,-430.0,0.00017259,2]
[363286711,1748659760512,-430.0,0.00017259,2]
[363286712,1748659760534,-592.46,0.00017259,2]
[363286713,1748659760554,-430.0,0.00017259,2]
[363286714,1748659760575,-981.04,0.00017259,2]
[363286715,1748659760596,-430.0,0.00017259,2]
[363286716,1748659760618,-430.0,0.00017259,2]
[363286717,1748659760639,-430.0,0.00017259,2]
[363286718,1748659760660,-481.0,0.00017259,2]
[363286719,1748659760682,-502.8,0.0001726,2]
[363286720,1748659760702,-430.0,0.0001726,2]
[363286721,1748659760723,-430.0,0.0001726,2]
[363286722,1748659760744,-596.3,0.0001726,2]
[363286723,1748659760765,-1146.38,0.0001726,2]
[363286724,1748659760786,-560.43,0.0001726,2]
[363286725,1748659760810,-2790.46531026,0.00017452,2]
[363286726,1748659760831,-485.73,0.00017533,2]
[363286727,1748659760852,-768.16,0.00017533,2]
[363286728,1748659760874,-516.04,0.00017533,2]
[363286729,1748659760896,-1201.36,0.00017533,2]
[363286730,1748659760916,-430.0,0.00017533,2]
[363286731,1748659760938,-773.38,0.00017533,2]
[363286732,1748659760959,-925.86,0.00017533,2]
[363286733,1748659760980,-430.0,0.00017533,2]
[363286734,1748659761001,-430.0,0.00017533,2]
[363286735,1748659761023,-592.46,0.00017533,2]
[363286736,1748659761043,-430.0,0.00017533,2]
[363286737,1748659761064,-981.04,0.00017533,2]
[363286738,1748659761084,-430.0,0.00017533,2]
[363286739,1748659761106,-430.0,0.00017533,2]
[363286740,1748659761128,-430.0,0.00017533,2]
[363286741,1748659761153,-481.0,0.00017533,2]
[363286742,1748659761175,-502.8,0.00017534,2]
[363286743,1748659761195,-430.0,0.00017534,2]
[363286744,1748659761217,-430.0,0.00017534,2]
[363286745,1748659761238,-596.3,0.00017534,2]
[363286746,1748659761260,-1146.38,0.00017534,2]
[363286747,1748659761281,-560.43,0.00017534,2]
[363286748,1748659761300,-503.32066576,0.00017642,2]
[363286749,1748659761321,-5000.0,0.00017697,2]
[363286750,1748659761341,-500.0,0.00017709,2]
[363286751,1748659761368,-2790.46531026,0.00017728,2]
[363286752,1748659761388,-500.0,0.0001775,2]
[363286753,1748659761413,-485.73,0.00017807,2]
[363286754,1748659761435,-768.16,0.00017807,2]
[363286755,1748659761456,-516.04,0.00017807,2]
[363286756,1748659761480,-1201.36,0.00017807,2]
[363286757,1748659761501,-323.53493338,0.00017807,2]
[363286759,1748659761524,-773.38,0.00017807,2]
[363286760,1748659761548,-925.86,0.00017807,2]
[363286761,1748659761570,-430.0,0.00017807,2]
[363286762,1748659761591,-430.0,0.00017807,2]
[363286763,1748659761613,-592.46,0.00017807,2]
[363286764,1748659761634,-430.0,0.00017807,2]
[363286765,1748659761655,-981.04,0.00017807,2]
[363286766,1748659761676,-430.0,0.00017807,2]
[363286767,1748659761699,-430.0,0.00017807,2]
[363286768,1748659761720,-430.0,0.00017807,2]
[363286769,1748659761744,-481.0,0.00017807,2]
[363286770,1748659761766,-502.8,0.00017808,2]
[363286771,1748659761787,-430.0,0.00017808,2]
[363286772,1748659761809,-430.0,0.00017808,2]
[363286773,1748659761832,-596.3,0.00017808,2]
[363286774,1748659761856,-1146.38,0.00017808,2]
[363286775,1748659761878,-560.43,0.00017808,2]
[363286776,1748659761900,-352.48,0.0001786,3]
[363286777,1748659761923,-572.78,0.0001786,3]
[363286778,1748659761943,-171.3,0.00017963,2]
[363286779,1748659761963,-171.3,0.00017963,2]
[363286780,1748659761985,-420.0,0.00017963,2]
[363286781,1748659762006,-420.0,0.00017963,2]
[363286782,1748659762033,430.0,0.00016985,2]
[363286783,1748659762070,430.0,0.00017259,2]
[363286784,1748659762103,430.0,0.00017533,2]
[363286785,1748659762140,430.0,0.00017807,2]
[363286786,1748659762212,-2790.46531026,0.00018003,2]
[363286787,1748659762233,-226.57103147,0.00018064,2]
[363286788,1748659762254,-485.73,0.00018081,2]
[363286789,1748659762276,-768.16,0.00018081,2]
[363286790,1748659762297,-516.04,0.00018081,2]
[363286791,1748659762320,-1201.36,0.00018081,2]
[363286792,1748659762342,-773.38,0.00018081,2]
[363286793,1748659762364,-925.86,0.00018081,2]
[363286794,1748659762384,-430.0,0.00018081,2]
[363286795,1748659762536,-430.0,0.00018081,2]
[363286796,1748659762558,-78.70817163,0.00018081,2]
[363286797,1748659763704,430.0,0.00016711,2]
[363286798,1748659763958,430.0,0.00016985,2]
[363286799,1748659764210,430.0,0.00017259,2]
[363286800,1748659764468,476.68056328,0.00017533,2]
[363286801,1748659766726,231.4395295,0.00016711,2]
[363286802,1748659767090,282.20404482,0.00016711,2]
[363286803,1748659767129,-513.75182837,0.00018081,2]
[363286804,1748659767150,-430.0,0.00018081,2]
[363286805,1748659767171,-981.04,0.00018081,2]
[363286806,1748659767193,-430.0,0.00018081,2]
[363286807,1748659767214,-49.34804263,0.00018081,2]
[363286808,1748659768090,-380.65195737,0.00018081,2]
[363286809,1748659768113,-430.0,0.00018081,2]
[363286810,1748659768137,-481.0,0.00018081,2]
[363286811,1748659768167,-430.0,0.00018081,2]
[363286812,1748659768188,-11092.85683571,0.00018082,2]
[363286813,1748659768211,-502.8,0.00018082,2]
[363286814,1748659768233,-430.0,0.00018082,2]
[363286815,1748659768255,-430.0,0.00018082,2]
[363286816,1748659768276,-596.3,0.00018082,2]
[363286817,1748659768297,-1146.38,0.00018082,2]
[363286818,1748659768320,-560.43,0.00018082,2]
[363286819,1748659768340,-1000.0,0.00018095,2]
[363286820,1748659768360,-1000.0,0.00018098,7]
[363286821,1748659768382,-1000.0,0.00018098,7]
[363286822,1748659768403,-15103.8782426,0.00018148,2]
[363286823,1748659769267,454.49421082,0.00016711,2]
[363286824,1748659770134,-9796.1217574,0.00018148,2]
[363286825,1748659770159,-1300.0,0.00018164,2]
[363286826,1748659770180,-212.77096907,0.00018164,2]
[363286827,1748659770201,-160.0,0.00018164,2]
[363286828,1748659770221,-160.0,0.00018164,2]
[363286829,1748659770243,-160.0,0.00018164,2]
[363286830,1748659770263,-160.0,0.00018164,2]
[363286831,1748659770282,-423.4608169,0.00018164,2]
[363286832,1748659770301,-842.5625,0.00018164,2]
[363286833,1748659770319,-229.3428821,0.00018164,2]
[363286834,1748659770338,-160.0,0.00018164,2]
[363286835,1748659770358,-160.0,0.00018164,2]
[363286836,1748659770380,-316.78754227,0.00018164,2]
[363286837,1748659771459,340.96525395,0.00016499,2]
[363286838,1748659773101,-500.0,0.00018182,2]
[363286839,1748659773128,-500.0,0.00018182,2]
[363286840,1748659773154,-500.0,0.00018182,2]
[363286841,1748659773179,-478.96467826,0.00018182,2]
[363286842,1748659773202,-500.0,0.00018182,2]
[363286843,1748659773233,-500.0,0.00018182,2]
[363286844,1748659773258,-500.0,0.00018182,2]
[363286845,1748659773282,-500.0,0.00018182,2]
[363286846,1748659773305,-500.0,0.00018182,2]
[363286847,1748659773329,-500.0,0.00018182,2]
[363286848,1748659773354,-500.0,0.00018182,2]
[363286849,1748659773382,-500.0,0.00018182,2]
[363286850,1748659773406,-556.78104238,0.00018182,2]
[363286851,1748659773429,-450.0,0.00018182,2]
[363286852,1748659773452,-500.0,0.00018183,2]
[363286853,1748659773474,-500.0,0.00018183,2]
[363286854,1748659773496,-500.0,0.00018183,2]
[363286855,1748659773517,-500.0,0.00018183,2]
[363286856,1748659773539,-500.0,0.00018183,2]
[363286857,1748659773560,-500.0,0.00018183,2]
[363286858,1748659773581,-500.0,0.00018183,2]
[363286859,1748659773603,-1000.0,0.00018183,2]
[363286860,1748659773628,-872.95392725,0.00018257,2]
[363286861,1748659773651,-528.72,0.00018278,3]
[363286862,1748659773679,-2790.46531026,0.00018279,2]
[363286863,1748659773701,-611.7818483,0.00018288,3]
[363286864,1748659779688,576.02332546,0.00016711,2]
[363286865,1748659781921,430.0,0.00016711,2]
[363286866,1748659781960,430.0,0.00016499,2]
[363286867,1748659782171,430.0,0.00016985,2]
[363286868,1748659782201,430.0,0.00016773,2]
[363286870,1748659782463,430.0,0.00017047,2]
[363286872,1748659782564,419.24765016,0.00017259,2]
[363286873,1748659784918,430.0,0.00016711,2]
[363286874,1748659785018,430.0,0.00016499,2]
[363286875,1748659785173,430.0,0.00016985,2]
[363286876,1748659785264,430.0,0.00016773,2]
[363286877,1748659785430,430.0,0.00017259,2]
[363286878,1748659785607,430.0,0.00017047,2]
[363286879,1748659785831,430.0,0.00017321,2]
[363286880,1748659786047,510.39,0.00016499,2]
[363286881,1748659786072,218.52351208,0.00017595,2]
[363286882,1748659786291,508.25385113,0.00016773,2]
[363286883,1748659786314,2.13614887,0.00016773,2]
[363286884,1748659786541,510.39,0.00017047,2]
[363286885,1748659786813,510.39,0.00017321,2]